fUSD/lending_fUSD_20260530
["ID","MTS","AMOUNT","RATE_DAILY","PERIOD"]
[423417588,1780095056000,-500.0,8.856e-05,2]
[423417584,1780095056000,-500.0,8.856e-05,2]
[423417582,1780095056000,-441.0,8.856e-05,2]
[423417581,1780095056000,-500.0,8.856e-05,2]
[423417585,1780095056000,-500.0,8.856e-05,2]
[423417640,1780095057000,-500.0,9.003e-05,2]
[423417637,1780095057000,-500.0,9.003e-05,2]
[423417639,1780095057000,-360.36020947,9.003e-05,2]
[423417638,1780095057000,-500.0,9.003e-05,2]
[423417629,1780095057000,-500.0,9.003e-05,2]
[423417635,1780095057000,-500.0,9.003e-05,2]
[423417633,1780095057000,-500.0,9.003e-05,2]
[423417641,1780095057000,-500.0,9.003e-05,2]
[423417630,1780095057000,-500.0,9.003e-05,2]
[423417636,1780095057000,-500.0,9.003e-05,2]
[423417644,1780095057000,-150.0,9.003e-05,2]
[423417650,1780095057000,-150.0,9.029e-05,2]
[423417643,1780095057000,-150.0,9.003e-05,2]
[423417642,1780095057000,-500.0,9.003e-05,2]
[423417646,1780095057000,-191.56250668,9.003e-05,2]
[423417649,1780095057000,-151.0,9.027e-05,2]
[423417648,1780095057000,-160.0,9.013e-05,2]
[423417647,1780095057000,-514.03917844,9.003e-05,2]
[423417655,1780095057000,-500.0,9.205e-05,2]
[423417656,1780095057000,-109219.9467419,9.238e-05,2]
[423417651,1780095057000,-511.1176,9.03e-05,2]
[423417653,1780095057000,-1680.0,9.039e-05,2]
[423417631,1780095057000,-500.0,9.003e-05,2]
[423417645,1780095057000,-500.0,9.003e-05,2]
[423417634,1780095057000,-500.0,9.003e-05,2]
[423417616,1780095057000,-226.6,8.929e-05,2]
[423417627,1780095057000,-6.47709175,9.003e-05,2]
[423417613,1780095057000,-832.0,8.895e-05,2]
[423417612,1780095057000,-4361.9499,8.87e-05,2]
[423417610,1780095057000,-161.39630681,8.856e-05,2]
[423417606,1780095057000,-460.0,8.856e-05,2]
[423417604,1780095057000,-500.0,8.856e-05,2]
[423417611,1780095057000,-4175.2365,8.87e-05,2]
[423417609,1780095057000,-500.0,8.856e-05,2]
[423417607,1780095057000,-500.0,8.856e-05,2]
[423417608,1780095057000,-500.0,8.856e-05,2]
[423417605,1780095057000,-500.0,8.856e-05,2]
[423417614,1780095057000,-161.9,8.917e-05,2]
[423417632,1780095057000,-500.0,9.003e-05,2]
[423417652,1780095057000,-1500000.0,9.03e-05,2]
[423417619,1780095057000,-2500.0,8.93e-05,2]
[423417623,1780095057000,-500.0,9.003e-05,2]
[423417620,1780095057000,-4140.19168733,8.97e-05,2]
[423417621,1780095057000,-500.0,9.003e-05,2]
[423417624,1780095057000,-500.0,9.003e-05,2]
[423417618,1780095057000,-1124.09990662,8.93e-05,2]
[423417615,1780095057000,-1964.315,8.929e-05,2]
[423417622,1780095057000,-500.0,9.003e-05,2]
[423417626,1780095057000,-493.52290825,9.003e-05,2]
[423417625,1780095057000,-500.0,9.003e-05,2]
[423417628,1780095057000,-500.0,9.003e-05,2]
[423417617,1780095057000,-33230.1787,8.93e-05,2]
[423417658,1780095057000,-466.0,9.277e-05,2]
[423417654,1780095057000,-154.06,9.132e-05,2]
[423417667,1780095057000,-466.0,9.277e-05,2]
[423417688,1780095057000,-16033.3483077,9.3e-05,2]
[423417690,1780095057000,-1052.8362246,9.3e-05,2]
[423417691,1780095057000,-19056.1238625,9.3e-05,2]
[423417695,1780095057000,-500.0,9.425e-05,2]
[423417700,1780095057000,-928.0,9.763e-05,2]
[423417697,1780095057000,-350.0,9.684e-05,2]
[423417694,1780095057000,-306352.5,9.347e-05,2]
[423417692,1780095057000,-2021.4056977,9.324e-05,2]
[423417696,1780095057000,-154.06,9.589e-05,2]
[423417693,1780095057000,-3857.7125759,9.347e-05,2]
[423417698,1780095057000,-960.0,9.708e-05,2]
[423417689,1780095057000,-187310.6970062,9.3e-05,2]
[423417699,1780095057000,-3549.0,9.763e-05,2]
[423417701,1780095057000,-165.132,9.763e-05,2]
[423417704,1780095057000,-525.0,9.763e-05,2]
[423417666,1780095057000,-466.0,9.277e-05,2]
[423417708,1780095057000,-418.0,9.763e-05,2]
[423417710,1780095057000,-932.0,9.763e-05,2]
[423417711,1780095057000,-880.04341714,9.786e-05,2]
[423417705,1780095057000,-150.0,9.763e-05,2]
[423417706,1780095057000,-150.0,9.763e-05,2]
[423417707,1780095057000,-200.0,9.763e-05,2]
[423417709,1780095057000,-217.0,9.763e-05,2]
[423417712,1780095057000,-250.0,9.796e-05,2]
[423417702,1780095057000,-1356.0,9.763e-05,2]
[423417686,1780095057000,-466.0,9.277e-05,2]
[423417703,1780095057000,-1272.0,9.763e-05,2]
[423417680,1780095057000,-466.0,9.277e-05,2]
[423417683,1780095057000,-466.0,9.277e-05,2]
[423417657,1780095057000,-2000.0,9.247e-05,2]
[423417660,1780095057000,-466.0,9.277e-05,2]
[423417659,1780095057000,-500.0,9.277e-05,2]
[423417661,1780095057000,-500.0,9.277e-05,2]
[423417662,1780095057000,-466.0,9.277e-05,2]
[423417664,1780095057000,-466.0,9.277e-05,2]
[423417665,1780095057000,-466.0,9.277e-05,2]
[423417669,1780095057000,-466.0,9.277e-05,2]
[423417679,1780095057000,-466.0,9.277e-05,2]
[423417668,1780095057000,-500.0,9.277e-05,2]
[423417671,1780095057000,-466.0,9.277e-05,2]
[423417663,1780095057000,-245.23340072,9.277e-05,2]
[423417672,1780095057000,-209.61359032,9.277e-05,2]
[423417685,1780095057000,-466.0,9.277e-05,2]
[423417670,1780095057000,-500.0,9.277e-05,2]
[423417684,1780095057000,-466.0,9.277e-05,2]
[423417682,1780095057000,-466.0,9.277e-05,2]
[423417681,1780095057000,-466.0,9.277e-05,2]
[423417687,1780095057000,-468.48877466,9.277e-05,2]
[423417677,1780095057000,-466.0,9.277e-05,2]
[423417675,1780095057000,-466.0,9.277e-05,2]
[423417674,1780095057000,-466.0,9.277e-05,2]
[423417676,1780095057000,-466.0,9.277e-05,2]
[423417673,1780095057000,-466.0,9.277e-05,2]
[423417678,1780095057000,-466.0,9.277e-05,2]
[423417734,1780095058000,-150.0,9.986e-05,2]
[423417737,1780095058000,-150.23770178,9.986e-05,2]
[423417735,1780095058000,-150.0,9.986e-05,2]
[423417741,1780095058000,-150.0,9.986e-05,2]
[423417739,1780095058000,-150.0,9.986e-05,2]
[423417736,1780095058000,-150.0,9.986e-05,2]
[423417738,1780095058000,-150.0,9.986e-05,2]
[423417754,1780095058000,-924.84962512,0.0001,2]
[423417744,1780095058000,-150.0,9.986e-05,2]
[423417743,1780095058000,-239.34994702,9.986e-05,2]
[423417742,1780095058000,-150.0,9.986e-05,2]
[423417746,1780095058000,-350.0,9.999e-05,2]
[423417755,1780095058000,-1545.0,0.0001002,2]
[423417745,1780095058000,-150.0,9.986e-05,2]
[423417731,1780095058000,-1353.81170168,9.965e-05,2]
[423417740,1780095058000,-150.0,9.986e-05,2]
[423417728,1780095058000,-153.0,9.939e-05,2]
[423417715,1780095058000,-303.67456761,9.841e-05,2]
[423417729,1780095058000,-1151.0,9.943e-05,2]
[423417713,1780095058000,-181.938619,9.839e-05,2]
[423417719,1780095058000,-181.938619,9.849e-05,2]
[423417717,1780095058000,-1000.0,9.841e-05,2]
[423417721,1780095058000,-832.0,9.884e-05,2]
[423417714,1780095058000,-181.938619,9.839e-05,2]
[423417718,1780095058000,-151.0,9.842e-05,2]
[423417716,1780095058000,-1000.0,9.841e-05,2]
[423417726,1780095058000,-153.0,9.939e-05,2]
[423417722,1780095058000,-1545.0,9.936e-05,2]
[423417724,1780095058000,-1545.0,9.936e-05,2]
[423417723,1780095058000,-1545.0,9.936e-05,2]
[423417733,1780095058000,-150.0,9.986e-05,2]
[423417732,1780095058000,-500.0,9.968e-05,2]
[423417725,1780095058000,-153.0,9.939e-05,2]
[423417730,1780095058000,-2296.539049,9.962e-05,2]
[423417727,1780095058000,-153.0,9.939e-05,2]
[423417720,1780095058000,-1877.07,9.879e-05,2]
[423417747,1780095058000,-3981.66583609,0.0001,2]
[423417750,1780095058000,-195.75811109,0.0001,2]
[423417749,1780095058000,-163.54,0.0001,2]
[423417775,1780095058000,-153.0,0.00010087,2]
[423417771,1780095058000,-1545.0,0.00010078,2]
[423417777,1780095058000,-150.0,0.0001011,2]
[423417770,1780095058000,-500.0,0.00010073,2]
[423417773,1780095058000,-1545.0,0.00010078,2]
[423417778,1780095058000,-150.0,0.00010134,2]
[423417781,1780095058000,-153.0,0.00010137,2]
[423417776,1780095058000,-150.0,0.00010097,2]
[423417783,1780095058000,-151.0,0.00010138,2]
[423417780,1780095058000,-1799.0,0.00010137,2]
[423417779,1780095058000,-150.0,0.00010134,2]
[423417782,1780095058000,-231.1569584,0.00010137,2]
[423417786,1780095058000,-1545.0,0.00010157,2]
[423417787,1780095058000,-181.938619,0.00010162,2]
[423417788,1780095058000,-217097.78201593,0.00010165,2]
[423417748,1780095058000,-160.36225914,0.0001,2]
[423417785,1780095058000,-924.84962512,0.00010155,2]
[423417769,1780095058000,-1507.84298329,0.00010065,2]
[423417784,1780095058000,-151.0,0.00010138,2]
[423417774,1780095058000,-151.0,0.00010078,2]
[423417772,1780095058000,-1545.0,0.00010078,2]
[423417751,1780095058000,-515.3299793,0.0001,2]
[423417753,1780095058000,-1353.81170168,0.0001,2]
[423417756,1780095058000,-153.0,0.0001002,2]
[423417760,1780095058000,-150.0,0.00010023,2]
[423417759,1780095058000,-153.0,0.00010022,2]
[423417761,1780095058000,-4000.0,0.00010027,2]
[423417758,1780095058000,-302.0,0.00010022,2]
[423417752,1780095058000,-338.17129484,0.0001,2]
[423417763,1780095058000,-154.06,0.00010046,2]
[423417766,1780095058000,-10000.0,0.00010065,2]
[423417762,1780095058000,-500.0,0.00010027,2]
[423417764,1780095058000,-150.0,0.0001006,2]
[423417765,1780095058000,-150.0,0.0001006,2]
[423417768,1780095058000,-4110.79887264,0.00010065,2]
[423417757,1780095058000,-153.0,0.0001002,2]
[423417767,1780095058000,-195.20571003,0.00010065,2]
[423417810,1780095059000,-4000.0,0.00010278,2]
[423417812,1780095059000,-150.0,0.00010282,2]
[423417806,1780095059000,-1545.0,0.00010266,2]
[423417807,1780095059000,-1571.66394522,0.00010266,2]
[423417809,1780095059000,-350.0,0.00010275,2]
[423417813,1780095059000,-150.0,0.00010282,2]
[423417819,1780095059000,-150.0,0.00010319,2]
[423417814,1780095059000,-500.0,0.00010284,2]
[423417822,1780095059000,-150.0,0.00010356,2]
[423417820,1780095059000,-350.0,0.00010321,2]
[423417824,1780095059000,-150.0,0.00010356,2]
[423417811,1780095059000,-163.0,0.0001028,2]
[423417818,1780095059000,-1545.0,0.00010313,2]
[423417808,1780095059000,-2000.0,0.00010274,2]
[423417803,1780095059000,-150.0,0.00010233,2]
[423417796,1780095059000,-150.0,0.00010171,2]
[423417805,1780095059000,-150.0,0.00010264,2]
[423417821,1780095059000,-150.0,0.00010356,2]
[423417790,1780095059000,-3499.310028,0.00010165,2]
[423417800,1780095059000,-150.0,0.00010208,2]
[423417791,1780095059000,-1586.820872,0.00010165,2]
[423417793,1780095059000,-151.0,0.00010165,2]
[423417798,1780095059000,-500.0,0.00010179,2]
[423417802,1780095059000,-150.0,0.00010208,2]
[423417797,1780095059000,-150.0,0.00010171,2]
[423417789,1780095059000,-1384167.07948807,0.00010165,2]
[423417794,1780095059000,-151.0,0.00010165,2]
[423417795,1780095059000,-150.0,0.00010165,2]
[423417799,1780095059000,-150.0,0.00010208,2]
[423417801,1780095059000,-150.0,0.00010208,2]
[423417804,1780095059000,-150.0,0.00010245,2]
[423417792,1780095059000,-151.0,0.00010165,2]
[423417823,1780095059000,-150.0,0.00010356,2]
[423417825,1780095059000,-500.0,0.00010389,2]
[423417817,1780095059000,-350.0,0.00010313,2]
[423417843,1780095059000,-500.0,0.000106,2]
[423417842,1780095059000,-150.0,0.00010578,2]
[423417849,1780095059000,-150.0,0.00010652,2]
[423417845,1780095059000,-350.0,0.00010609,2]
[423417844,1780095059000,-150.0,0.00010603,2]
[423417850,1780095059000,-150.0,0.00010652,2]
[423417841,1780095059000,-150.0,0.00010578,2]
[423417848,1780095059000,-400.0,0.00010647,2]
[423417846,1780095059000,-150.0,0.00010615,2]
[423417852,1780095059000,-150.0,0.00010652,2]
[423417854,1780095059000,-924.84962512,0.0001069,2]
[423417816,1780095059000,-9828.86679909,0.000103,2]
[423417855,1780095059000,-181.938619,0.00010697,2]
[423417853,1780095059000,-150.0,0.00010689,2]
[423417847,1780095059000,-350.0,0.00010625,2]
[423417840,1780095059000,-150.0,0.00010541,2]
[423417856,1780095059000,-127867.57723012,0.000107,2]
[423417839,1780095059000,-150.0,0.00010541,2]
[423417851,1780095059000,-150.0,0.00010652,2]
[423417815,1780095059000,-181.938619,0.00010291,2]
[423417826,1780095059000,-150.0,0.00010393,2]
[423417827,1780095059000,-150.0,0.0001043,2]
[423417830,1780095059000,-150.0,0.0001043,2]
[423417829,1780095059000,-150.0,0.0001043,2]
[423417836,1780095059000,-150.0,0.00010504,2]
[423417832,1780095059000,-150.0,0.00010479,2]
[423417828,1780095059000,-150.0,0.0001043,2]
[423417834,1780095059000,-154.06,0.00010502,2]
[423417837,1780095059000,-4000.0,0.00010529,2]
[423417835,1780095059000,-150.0,0.00010504,2]
[423417838,1780095059000,-150.0,0.00010541,2]
[423417833,1780095059000,-500.0,0.00010495,2]
[423417831,1780095059000,-150.0,0.00010467,2]
[423417862,1780095060000,-835.5016347,0.000107,2]
[423417859,1780095060000,-463.35377226,9.763e-05,2]
[423417860,1780095060000,-4360.43733313,9.763e-05,2]
[423417857,1780095060000,-745.65434932,9.763e-05,2]
[423417858,1780095060000,-496.55454529,9.763e-05,2]
[423417864,1780095060000,-1336.47408178,0.000107,2]
[423417861,1780095060000,-7393.73019824,0.000107,2]
[423417863,1780095060000,-340.379185,0.000107,2]
[423417868,1780095061000,152.0,9.713e-05,7]
[423417867,1780095061000,152.0,9.713e-05,7]
[423417866,1780095061000,-463.11319434,0.000107,2]
[423417865,1780095061000,-260.10175785,0.000107,2]
[423417870,1780095103000,-150.0,7.933e-05,2]
[423417871,1780095132000,500.0,0.00039396,120]
[423417872,1780095159000,-150.0,8.011e-05,2]
[423417873,1780095210000,-150.0,7.771e-05,2]
[423417874,1780095214000,500.0,0.0003941,120]
[423417875,1780095224000,30000.0,0.0003941,120]
[423417876,1780095265000,-150.0,8.581e-05,2]
[423417878,1780095266000,287.0,0.0003941,120]
[423417877,1780095266000,934.0,0.0003941,120]
[423417879,1780095279000,30000.0,0.0003941,120]
[423417880,1780095317000,-500.0,8.581e-05,2]
[423417882,1780095319000,30000.0,0.0003941,120]
[423417881,1780095319000,318.0,0.00010073,5]
[423417888,1780095431000,500.0,0.0003941,120]
[423417890,1780095521000,-150.0,8.581e-05,2]
[423417889,1780095521000,-1200.0,8.58e-05,2]
[423417891,1780095521000,-594.0,8.582e-05,2]
[423417896,1780095521000,-594.0,8.582e-05,2]
[423417893,1780095521000,-594.0,8.582e-05,2]
[423417895,1780095521000,-594.0,8.582e-05,2]
[423417892,1780095521000,-594.0,8.582e-05,2]
[423417894,1780095521000,-594.0,8.582e-05,2]
[423417922,1780095522000,-4399.1645,8.756e-05,2]
[423417897,1780095522000,-594.0,8.582e-05,2]
[423417898,1780095522000,-594.0,8.582e-05,2]
[423417900,1780095522000,-594.0,8.582e-05,2]
[423417899,1780095522000,-594.0,8.582e-05,2]
[423417902,1780095522000,-594.0,8.582e-05,2]
[423417901,1780095522000,-594.0,8.582e-05,2]
[423417903,1780095522000,-594.0,8.582e-05,2]
[423417904,1780095522000,-594.0,8.582e-05,2]
[423417906,1780095522000,-594.0,8.582e-05,2]
[423417905,1780095522000,-594.0,8.582e-05,2]
[423417908,1780095522000,-594.0,8.582e-05,2]
[423417909,1780095522000,-594.0,8.582e-05,2]
[423417907,1780095522000,-594.0,8.582e-05,2]
[423417912,1780095522000,-594.0,8.582e-05,2]
[423417911,1780095522000,-594.0,8.582e-05,2]
[423417913,1780095522000,-594.0,8.582e-05,2]
[423417914,1780095522000,-594.0,8.582e-05,2]
[423417915,1780095522000,-904.83532114,8.582e-05,2]
[423417916,1780095522000,-160.0,8.624e-05,2]
[423417917,1780095522000,-2500.0,8.656e-05,2]
[423417919,1780095522000,-904.83532114,8.712e-05,2]
[423417918,1780095522000,-150.0,8.665e-05,2]
[423417920,1780095522000,-181.938619,8.753e-05,2]
[423417923,1780095522000,-1500000.0,8.756e-05,2]
[423417921,1780095522000,-1000.0,8.756e-05,2]
[423417910,1780095522000,-594.0,8.582e-05,2]
[423417924,1780095530000,1500000.0,8.656e-05,2]
[423417925,1780095532000,-974193.22623872,8.83e-05,2]
[423417926,1780095543000,-300.0,8.829e-05,2]
[423417927,1780095552000,-1395137.28936128,8.83e-05,2]
[423417929,1780095650000,152.0,9.715e-05,7]
[423417932,1780095715000,2588.2782977,0.00039393,120]
[423417934,1780095732000,500.0,0.00039393,120]
[423417939,1780095802000,500.0,0.00027728,120]
[423417938,1780095802000,500.0,0.00026314,120]
[423417940,1780095806000,1487.47637992,0.00039393,120]
[423417941,1780095904000,4999.9,0.00039428,120]
[423417942,1780095919000,252.0,0.00010073,5]
[423417944,1780095946000,152.0,9.717e-05,7]
[423417945,1780095990000,-989.94,8.219e-05,2]
[423417946,1780095991000,416.81525,0.00039428,120]
[423417947,1780096045000,-500.0,8.31e-05,2]
[423417948,1780096048000,500.0,0.00039428,120]
[423417949,1780096098000,-191.55397799,8.31e-05,2]
[423417950,1780096152000,-1485.14,7.954e-05,2]
[423417951,1780096206000,-236.2170855,8.31e-05,2]
[423417963,1780096231000,-155.29,8.678e-05,2]
[423417967,1780096231000,-500.0,8.801e-05,2]
[423417978,1780096231000,-500.0,8.801e-05,2]
[423417960,1780096231000,-301.61177371,8.557e-05,2]
[423417958,1780096231000,-154.07,8.353e-05,2]
[423417957,1780096231000,-215.5484138,8.328e-05,2]
[423417965,1780096231000,-155.29,8.786e-05,2]
[423417953,1780096231000,-202.5,8.31e-05,2]
[423417964,1780096231000,-155.29,8.732e-05,2]
[423417959,1780096231000,-1316.34,8.51e-05,2]
[423417961,1780096231000,-1800.078,8.626e-05,2]
[423417956,1780096231000,-1267.2,8.312e-05,2]
[423417955,1780096231000,-301.61177372,8.311e-05,2]
[423417954,1780096231000,-2000.0,8.311e-05,2]
[423417962,1780096231000,-212.818,8.626e-05,2]
[423417979,1780096231000,-286.69151883,8.801e-05,2]
[423417973,1780096231000,-316.09023698,8.801e-05,2]
[423417982,1780096231000,-40663.75899135,8.802e-05,2]
[423417992,1780096231000,-1399.23683918,8.802e-05,2]
[423417991,1780096231000,-1051.54508863,8.802e-05,2]
[423417989,1780096231000,-407.0,8.802e-05,2]
[423417986,1780096231000,-17522.03704175,8.802e-05,2]
[423417984,1780096231000,-13133.14278973,8.802e-05,2]
[423417988,1780096231000,-911.72705474,8.802e-05,2]
[423417985,1780096231000,-7263.94430379,8.802e-05,2]
[423417987,1780096231000,-1254.41808677,8.802e-05,2]
[423417990,1780096231000,-527.08316082,8.802e-05,2]
[423417983,1780096231000,-177483.52749212,8.802e-05,2]
[423417976,1780096231000,-500.0,8.801e-05,2]
[423417975,1780096231000,-500.0,8.801e-05,2]
[423417974,1780096231000,-500.0,8.801e-05,2]
[423417971,1780096231000,-500.0,8.801e-05,2]
[423417969,1780096231000,-168.14136481,8.801e-05,2]
[423417981,1780096231000,-3158.508674,8.801e-05,2]
[423418005,1780096237000,-349.47697204,8.311e-05,2]
[423418006,1780096237000,-950.52302796,8.802e-05,2]
[423418009,1780096237000,-413.62323761,8.802e-05,2]
[423418007,1780096237000,-13168.85751918,8.802e-05,2]
[423418008,1780096237000,-2403.83756816,8.802e-05,2]
[423418043,1780096259000,-2600.0,8.802e-05,2]
[423418062,1780096260000,-500.0,9.049e-05,2]
[423418063,1780096260000,-500.0,9.049e-05,2]
[423418067,1780096260000,-500.0,9.049e-05,2]
[423418064,1780096260000,-500.0,9.049e-05,2]
[423418065,1780096260000,-500.0,9.049e-05,2]
[423418069,1780096260000,-500.0,9.049e-05,2]
[423418070,1780096260000,-500.0,9.049e-05,2]
[423418066,1780096260000,-507.81285816,9.049e-05,2]
[423418072,1780096260000,-500.0,9.049e-05,2]
[423418076,1780096260000,-500.0,9.049e-05,2]
[423418074,1780096260000,-500.0,9.049e-05,2]
[423418073,1780096260000,-500.0,9.049e-05,2]
[423418075,1780096260000,-500.0,9.049e-05,2]
[423418078,1780096260000,-500.0,9.049e-05,2]
[423418079,1780096260000,-500.0,9.049e-05,2]
[423418071,1780096260000,-500.0,9.049e-05,2]
[423418068,1780096260000,-500.0,9.049e-05,2]
[423418051,1780096260000,-6349.52,8.864e-05,2]
[423418059,1780096260000,-500.0,9.049e-05,2]
[423418077,1780096260000,-500.0,9.049e-05,2]
[423418044,1780096260000,-11585.99999999,8.802e-05,2]
[423418046,1780096260000,-328166.06672558,8.802e-05,2]
[423418047,1780096260000,-12025.0112308,8.802e-05,2]
[423418050,1780096260000,-155.29,8.84e-05,2]
[423418049,1780096260000,-300.0,8.83e-05,2]
[423418048,1780096260000,-301.61177371,8.802e-05,2]
[423418053,1780096260000,-155.29,8.893e-05,2]
[423418052,1780096260000,-9999.99,8.864e-05,2]
[423418055,1780096260000,-21351.4671,8.93e-05,2]
[423418056,1780096260000,-155.29,8.947e-05,2]
[423418054,1780096260000,-160.0,8.905e-05,2]
[423418057,1780096260000,-17259.14,8.957e-05,2]
[423418058,1780096260000,-155.29,9.001e-05,2]
[423418060,1780096260000,-504.28519439,9.049e-05,2]
[423418061,1780096260000,-150.0,9.049e-05,2]
[423418080,1780096260000,-500.0,9.049e-05,2]
[423418045,1780096260000,-55911.97415604,8.802e-05,2]
[423418081,1780096260000,-500.0,9.049e-05,2]
[423418099,1780096260000,-155.29,9.377e-05,2]
[423418097,1780096260000,-2000.0,9.349e-05,2]
[423418100,1780096260000,-500.0,9.384e-05,2]
[423418101,1780096260000,-784.50157707,9.387e-05,2]
[423418107,1780096260000,-6066.0,9.811e-05,2]
[423418106,1780096260000,-500.0,9.658e-05,2]
[423418109,1780096260000,-5000.0,9.827e-05,2]
[423418110,1780096260000,-1356.0,9.858e-05,2]
[423418116,1780096260000,-2871.63,9.879e-05,2]
[423418112,1780096260000,-928.0,9.858e-05,2]
[423418115,1780096260000,-1245.947,9.858e-05,2]
[423418108,1780096260000,-3638.0,9.811e-05,2]
[423418113,1780096260000,-525.0,9.858e-05,2]
[423418114,1780096260000,-1272.0,9.858e-05,2]
[423418117,1780096260000,-1109480.90703736,9.927e-05,2]
[423418098,1780096260000,-1267.2,9.351e-05,2]
[423418095,1780096260000,-155.29,9.269e-05,2]
[423418111,1780096260000,-3549.0,9.858e-05,2]
[423418103,1780096260000,-155.29,9.484e-05,2]
[423418105,1780096260000,-155.29,9.592e-05,2]
[423418084,1780096260000,-500.0,9.049e-05,2]
[423418083,1780096260000,-500.0,9.049e-05,2]
[423418085,1780096260000,-500.0,9.049e-05,2]
[423418087,1780096260000,-155.29,9.054e-05,2]
[423418088,1780096260000,-155.29,9.108e-05,2]
[423418090,1780096260000,-303.28135102,9.11e-05,2]
[423418091,1780096260000,-247.97328438,9.11e-05,2]
[423418082,1780096260000,-500.0,9.049e-05,2]
[423418092,1780096260000,-250.0,9.14e-05,2]
[423418086,1780096260000,-330.41009315,9.049e-05,2]
[423418094,1780096260000,-155.29,9.216e-05,2]
[423418093,1780096260000,-155.29,9.162e-05,2]
[423418096,1780096260000,-155.29,9.323e-05,2]
[423418104,1780096260000,-155.29,9.538e-05,2]
[423418102,1780096260000,-155.29,9.431e-05,2]
[423418089,1780096260000,-500.0,9.11e-05,2]
[423418119,1780096261000,-522.22443921,9.927e-05,2]
[423418118,1780096261000,-10540.95800001,9.927e-05,2]
[423418121,1780096262000,150.0,8.602e-05,2]
[423418120,1780096262000,-269.16893674,9.86e-05,2]
[423418122,1780096263000,150.0,8.602e-05,2]
[423418123,1780096264000,193.0,9.462e-05,2]
[423418126,1780096265000,250.0,8.716e-05,2]
[423418125,1780096265000,250.0,9.462e-05,2]
[423418124,1780096265000,393.96490034,9.462e-05,2]
[423418127,1780096265000,322.83271541,9.38e-05,2]
[423418128,1780096272000,199.57735569,8.801e-05,2]
[423418129,1780096335000,-150.0,8.538e-05,2]
[423418131,1780096337000,500.0,0.0003938,120]
[423418130,1780096337000,500.0,0.0003938,120]
[423418132,1780096387000,-150.0,8.282e-05,2]
[423418134,1780096404000,500.0,0.00028063,120]
[423418133,1780096404000,500.0,0.0002643,120]
[423418135,1780096528000,152.0,0.00010168,5]
[423418136,1780096537000,1923.0,0.0003938,120]
[423418137,1780096547000,152.0,9.718e-05,7]
[423418138,1780096572000,154.3,6.225e-05,2]
[423418139,1780096632000,500.0,0.00039366,120]
[423418141,1780096812000,330.0,9.918e-05,3]
[423418144,1780096951000,500.0,0.00039366,120]
[423418145,1780097009000,25147.20795158,0.00039366,120]
[423418149,1780097086000,-150.0,6.942e-05,2]
[423418150,1780097110000,152.5,0.0003937,120]
[423418151,1780097131000,150.0,0.00010062,5]
[423418153,1780097155000,-293.96490034,6.981e-05,2]
[423418154,1780097156000,601.13547657,6.873e-05,2]
[423418155,1780097159000,330.0,9.918e-05,3]
[423418156,1780097200000,-814.19530196,6.873e-05,2]
[423418157,1780097227000,-171.90922147,6.873e-05,2]
[423418158,1780097239000,500.0,0.0003937,120]
[423418159,1780097240000,500.0,0.0003937,120]
[423418160,1780097266000,500.0,0.0003937,120]
[423418161,1780097281000,1000.0,0.0003937,120]
[423418162,1780097321000,200.0,6.75e-05,2]
[423418163,1780097337000,330.0,9.918e-05,3]
[423418202,1780097432000,-582.05,7.672e-05,2]
[423418187,1780097432000,-582.05,7.236e-05,2]
[423418188,1780097432000,-582.05,7.275e-05,2]
[423418191,1780097432000,-582.05,7.355e-05,2]
[423418192,1780097432000,-582.05,7.394e-05,2]
[423418190,1780097432000,-582.05,7.315e-05,2]
[423418194,1780097432000,-582.05,7.474e-05,2]
[423418193,1780097432000,-582.05,7.434e-05,2]